bitfinex-derivatives/quotes_ETHF0:USTF0_20250606
["timestamp","ask_amount","ask_price","bid_price","bid_amount"]
[1749170182402,0.89696351,2421.3,2420.9,13.21633]
[1749170182598,3.2078,2421.0,2420.4,4.0337]
[1749170182907,3.2078,2421.0,2420.4,1.4253]
[1749170183103,0.82584,2420.7,2420.4,3.66842]
[1749170183304,0.8258,2420.8,2420.5,0.82586]
[1749170183505,2.28027,2420.9,2420.6,0.82584]
[1749170183701,2.28027,2420.9,2420.5,1.4172]
[1749170183702,0.82585,2420.6,2420.5,1.4172]
[1749170183901,1.4545,2420.9,2420.5,1.4172]
[1749170184206,0.82588,2420.6,2420.4,1.4253]
[1749170184596,2.8551,2420.9,2420.4,2.8425]
[1749170184897,1.4545,2420.9,2420.4,2.8425]
[1749170185102,1.4545,2420.9,2420.7,0.82581]
[1749170185306,2.28026,2420.9,2420.6,0.82583]
[1749170185505,1.4545,2420.9,2420.7,1.3359]
[1749170185706,2.28027,2420.9,2420.7,1.3359]
[1749170186106,0.82578,2420.8,2420.7,1.3359]
[1749170186310,0.82585,2420.6,2420.4,2.2512]
[1749170186503,0.82592,2420.4,2420.3,0.00620347]
[1749170187710,2.28351,2420.5,2420.3,0.00620347]
[1749170187905,0.82592,2420.4,2420.3,0.00620347]
[1749170188913,3.2078,2420.7,2420.3,0.00620347]
[1749170188914,4.03363,2420.7,2420.3,0.00620347]
[1749170189213,0.82586,2420.6,2420.3,0.83214347]
[1749170189512,3.2078,2420.7,2420.3,0.83214347]
[1749170189707,0.82586,2420.6,2420.4,1.3601]
[1749170189912,3.2078,2420.7,2420.4,1.3601]
[1749170190208,1.3304,2420.8,2420.4,7.7321]
[1749170190407,4.5382,2420.8,2420.3,6.37820347]
[1749170190714,3.2078,2421.1,2420.3,6.37820347]
[1749170190916,3.2078,2420.8,2420.4,2.7642]
[1749170191104,0.82578,2420.9,2420.6,0.82583]
[1749170191308,1.4289,2421.0,2420.4,9.1362]
[1749170191508,0.82589,2420.5,2420.4,2.7642]
[1749170191716,0.82587,2420.6,2420.4,2.7642]
[1749170192012,3.2078,2420.9,2420.4,2.7642]
[1749170192215,0.82584,2420.7,2420.5,0.82589]
[1749170192514,0.82584,2420.7,2420.4,3.5901]
[1749170193017,0.82584,2420.7,2420.4,2.7642]
[1749170193215,0.8258,2420.8,2420.4,2.7642]
[1749170193414,0.82583,2420.7,2420.4,2.7642]
[1749170193810,0.82583,2420.7,2420.4,3.59009]
[1749170194011,0.82583,2420.7,2420.3,6.37820347]
[1749170194012,0.82592,2420.4,2420.3,0.00620347]
[1749170195312,14.77369075,2420.4,2420.3,3.47e-06]
[1749170196718,15.09744242,2420.4,2420.3,3.47e-06]
[1749170197613,6.95539075,2420.4,2420.3,3.47e-06]
[1749170197917,8.27539075,2420.4,2420.3,3.47e-06]
[1749170198419,8.59073739,2420.4,2420.3,3.47e-06]
[1749170198814,3.27539075,2420.4,2420.3,3.47e-06]
[1749170199019,8.27539075,2420.4,2420.3,3.47e-06]
[1749170199217,8.27539075,2420.4,2418.9,3.2078]
[1749170199218,2.06512,2420.1,2418.9,3.2078]
[1749170199413,3.2078,2419.8,2419.4,1.4513]
[1749170199825,0.82622,2419.6,2419.4,1.4513]
[1749170200118,0.82623,2419.5,2419.4,1.4513]
[1749170200321,0.82623,2419.5,2419.3,0.00620347]
[1749170200322,0.82626,2419.4,2419.3,0.00620347]
[1749170200823,2.16836,2419.4,2419.3,0.00620347]
[1749170201019,7.16836,2419.4,2419.3,0.00620347]
[1749170201227,0.82626,2419.4,2419.3,0.00620347]
[1749170205420,4.03403,2419.5,2419.3,0.00620347]
[1749170205727,0.82617,2419.7,2419.3,0.00620347]
[1749170205927,0.82617,2419.7,2419.5,0.82622]
[1749170206129,3.2078,2420.0,2419.6,2.8084]
[1749170206326,0.82612,2419.9,2419.6,6.84238]
[1749170206624,3.2078,2420.0,2419.8,0.8261]
[1749170206825,3.2078,2420.0,2419.9,2.8004]
[1749170207021,4.03386,2420.0,2419.9,2.8004]
[1749170207523,3.2078,2420.0,2419.9,2.8004]
[1749170207917,3.2078,2420.0,2419.9,3.62649]
[1749170208224,3.2078,2420.3,2419.9,11.0082]
[1749170208421,3.2078,2420.3,2419.9,6.83427]
[1749170208621,3.2078,2420.3,2419.9,6.0082]
[1749170208824,0.82601,2420.2,2419.9,6.0082]
[1749170209020,0.82603,2420.1,2419.9,6.0082]
[1749170209925,0.82606,2420.0,2419.9,6.0082]
[1749170210115,3.2078,2420.3,2419.9,2.8004]
[1749170210520,0.826,2420.2,2419.9,2.8004]
[1749170211116,0.82605,2420.1,2419.9,2.8004]
[1749170211426,3.27913351,2420.3,2419.9,2.8004]
[1749170211721,0.89730351,2420.3,2419.9,2.8004]
[1749170211927,0.89730351,2420.3,2419.9,3.62647]
[1749170212128,0.82601,2420.2,2419.9,2.8004]
[1749170212427,0.82601,2420.2,2419.9,3.62649]
[1749170212726,0.89730351,2420.3,2419.9,3.62649]
[1749170214325,0.89730351,2420.3,2420.0,0.82603]
[1749170214528,0.07133351,2420.3,2420.1,1.468]
[1749170214727,0.89728351,2420.3,2420.2,1.3923]
[1749170215224,0.07133351,2420.3,2420.2,1.3923]
[1749170215420,0.07133351,2420.3,2420.2,2.21829]
[1749170215631,0.07133351,2420.3,2420.2,7.21829]
[1749170219232,0.07133351,2420.3,2420.2,13.55729]
[1749170220530,0.07133351,2420.3,2420.2,8.55729]
[1749170221026,0.07133351,2420.3,2420.2,1.3923]
[1749170221329,0.07133351,2420.3,2420.1,1.468]
[1749170221522,0.07133351,2420.3,2420.1,2.9009]
[1749170221931,0.82599,2420.2,2420.1,2.9009]
[1749170222132,3.27913351,2420.3,2420.0,4.139]
[1749170222133,0.82602,2420.1,2420.0,4.139]
[1749170222423,0.0062,2420.6,2420.5,0.82589]
[1749170222621,0.0062,2420.6,2420.5,4.03369]
[1749170222825,1.67001328,2421.6,2420.5,6.0085]
[1749170223030,0.82573,2421.0,2420.6,0.82584]
[1749170223231,2.57299465,2421.5,2420.5,7.4526]
[1749170223232,2.8414,2421.5,2420.7,1.4441]
[1749170223432,0.82571,2421.1,2420.7,1.4441]
[1749170223629,3.2078,2421.1,2420.5,6.0085]
[1749170223823,2.8414,2421.5,2420.6,0.00620347]
[1749170223824,3.2078,2421.0,2420.6,0.00620347]
[1749170224030,0.82574,2421.0,2420.6,2.27613347]
[1749170224230,4.0335,2421.1,2420.7,0.8258]
[1749170224434,0.8257,2421.1,2420.8,1.4441]
[1749170224929,2.8014,2421.4,2420.8,2.26988]
[1749170225130,4.2269,2421.4,2420.8,2.26986]
[1749170225328,6.338,2421.3,2420.8,1.4441]
[1749170225532,3.2078,2421.1,2420.6,0.83202347]
[1749170225732,0.82582,2420.7,2420.6,0.00620347]
[1749170226032,6.338,2420.9,2420.6,0.00620347]
[1749170226232,2.27912,2420.8,2420.6,0.00620347]
[1749170226428,0.82582,2420.7,2420.6,0.00620347]
[1749170226830,0.82582,2420.7,2420.0,1.4296]
[1749170226831,0.82593,2420.4,2420.0,1.4296]
[1749170227034,3.2078,2420.3,2420.1,0.82601]
[1749170227228,7.1639,2420.5,2420.1,0.82601]
[1749170227434,6.338,2420.5,2420.2,0.82598]
[1749170227837,6.338,2420.5,2420.3,0.82595]
[1749170228026,1.4255,2420.7,2420.5,0.82587]
[1749170228231,2.8693,2420.8,2420.5,0.82585]
[1749170228535,3.6951,2420.8,2420.4,0.8259]
[1749170228734,3.6951,2420.8,2420.4,1.3353]
[1749170228735,2.8693,2420.8,2420.4,1.3353]
[1749170229029,2.27909,2420.8,2420.5,0.82588]
[1749170229234,1.4533,2420.8,2420.5,0.82588]
[1749170229635,1.4533,2420.8,2420.4,3.50111]
[1749170230034,1.4533,2420.8,2420.5,0.82588]
[1749170230233,1.4533,2420.8,2420.5,2.16118]
[1749170230433,1.4533,2420.8,2420.5,1.3353]
[1749170230643,2.2791,2420.8,2420.5,1.3353]
[1749170230845,0.82583,2420.7,2420.5,1.3353]
[1749170231240,2.2791,2420.8,2420.5,1.3353]
[1749170231641,2.2791,2420.8,2420.5,2.16118]
[1749170231943,2.2791,2420.8,2420.5,1.3353]
[1749170232241,2.2791,2420.8,2420.1,0.83221347]
[1749170232242,0.82593,2420.4,2420.1,0.83221347]
[1749170232442,3.2078,2420.6,2420.1,0.00620347]
[1749170232646,3.2078,2420.2,2420.1,0.00620347]
[1749170232946,3.2078,2420.2,2419.4,0.82624]
[1749170233134,3.2078,2419.8,2419.5,0.82622]
[1749170233339,0.82611,2419.9,2419.5,0.82622]
[1749170233536,3.59793,2420.1,2419.7,0.82613]
[1749170233741,1.4439,2420.1,2419.7,0.00620347]
[1749170233941,0.82607,2420.0,2419.7,0.00620347]
[1749170234140,0.82607,2420.0,2419.7,1.43890347]
[1749170234344,2.26993,2420.1,2419.7,2.26505347]
[1749170234644,0.82606,2420.0,2419.7,2.26505347]
[1749170234843,0.82606,2420.0,2419.7,1.43890347]
[1749170235038,2.26994,2420.1,2419.7,1.43890347]
[1749170235241,0.82595,2420.3,2419.8,1.3919]
[1749170235437,3.2078,2420.8,2420.4,0.82592]
[1749170235648,0.82587,2420.6,2420.2,0.82597]
[1749170235849,0.82587,2420.6,2420.3,1.3282]
[1749170236245,1.4404,2420.7,2420.3,2.15413]
[1749170236447,0.82591,2420.5,2420.3,1.3282]
[1749170236746,1.4404,2420.7,2420.3,1.3282]
[1749170237044,0.82589,2420.5,2420.3,1.3282]
[1749170237250,0.82587,2420.6,2420.3,1.3282]
[1749170237442,0.82589,2420.5,2420.3,1.3282]
[1749170238049,1.4404,2420.7,2420.3,2.15414]
[1749170238242,0.00620347,2420.9,2420.5,3.2078]
[1749170238443,1.41400347,2420.9,2420.3,1.3282]
[1749170238750,0.82592,2420.4,2420.3,1.3282]
[1749170238948,0.8259,2420.5,2420.3,1.3282]
[1749170239344,0.82587,2420.6,2420.3,1.3282]
[1749170239948,0.82589,2420.5,2420.3,1.3282]
[1749170240245,0.82592,2420.4,2420.3,1.3282]
[1749170240446,2.82060347,2420.9,2420.3,1.3282]
[1749170240447,0.82591,2420.5,2420.3,1.3282]
[1749170240847,0.82592,2420.4,2420.3,1.3282]
[1749170241048,0.82591,2420.5,2420.3,1.3282]
[1749170241244,0.82588,2420.6,2420.3,1.3282]
[1749170241450,0.82586,2420.6,2420.3,1.3282]
[1749170241645,0.82586,2420.6,2420.3,2.722]
[1749170241840,0.82583,2420.7,2420.3,3.54794]
[1749170242150,0.82586,2420.6,2420.3,3.54794]
[1749170242553,0.82586,2420.6,2420.4,1.3478]
[1749170242745,0.82586,2420.6,2420.5,1.3227]
[1749170243459,0.82595,2420.3,2420.2,3.2078]
[1749170243954,3.2078,2420.7,2420.2,3.2078]
[1749170243955,0.82593,2420.4,2420.2,3.2078]
[1749170244154,2.89193698,2420.9,2420.3,1.4435]
[1749170244455,0.82584,2420.7,2420.5,3.2078]
[1749170244652,0.82584,2420.7,2420.5,4.6513]
[1749170244946,0.07753698,2420.9,2420.5,4.6513]
[1749170245152,0.07753698,2420.9,2420.8,4.03358]
[1749170245348,0.07753698,2420.9,2420.8,9.03358]
[1749170245554,3.2078,2421.7,2420.8,8.2078]
[1749170245856,0.82554,2421.5,2421.3,3.2078]
[1749170246055,0.82554,2421.5,2421.3,4.6513]
[1749170246553,0.82556,2421.5,2421.3,4.6513]
[1749170246755,0.83173347,2421.6,2421.3,4.6513]
[1749170247151,0.83173347,2421.6,2421.3,5.9772]
[1749170247549,0.00620347,2421.6,2421.3,6.8028]
[1749170247746,0.00620347,2421.6,2421.3,8.153]
[1749170248153,0.00620347,2421.6,2421.4,0.82557]
[1749170248359,0.00620347,2421.6,2421.5,1.3507]
[1749170249654,0.00620347,2421.6,2421.5,2.17624]
[1749170249855,0.00620347,2421.6,2421.5,1.3507]
[1749170250553,3.21400347,2421.6,2421.2,0.00620347]
[1749170250754,0.82561,2421.3,2421.2,0.00620347]
[1749170250952,1.3145,2421.5,2421.2,0.00620347]
[1749170251146,0.82561,2421.3,2421.2,0.00620347]
[1749170253459,4.03341,2421.3,2421.2,0.00620347]
[1749170253754,0.826,2420.2,2420.0,3.2078]
[1749170253957,3.2078,2420.6,2420.0,3.2078]
[1749170254153,0.82599,2420.2,2420.0,3.2078]
[1749170254548,3.2078,2420.6,2420.0,3.2078]
[1749170254549,0.82602,2420.1,2420.0,3.2078]
[1749170254761,0.82606,2420.0,2419.9,0.00620347]
[1749170255261,0.00620347,2420.3,2419.9,0.00620347]
[1749170255262,1.4041,2420.2,2419.9,0.00620347]
[1749170255459,0.82604,2420.1,2419.9,0.00620347]
[1749170255658,0.82604,2420.1,2419.9,1.45580347]
[1749170256455,0.82602,2420.2,2419.9,4.66360347]
[1749170256657,0.00620347,2420.3,2419.9,4.66360347]
[1749170256857,0.82606,2420.0,2419.9,4.66360347]
[1749170257060,0.82606,2420.0,2419.9,0.00620347]
[1749170258158,3.2078,2420.2,2419.9,0.00620347]
[1749170258467,0.82606,2420.0,2419.9,0.00620347]
[1749170259165,3.2078,2420.2,2419.9,0.00620347]
[1749170259361,0.82604,2420.1,2419.9,0.00620347]
[1749170259559,0.82604,2420.1,2419.9,1.36010347]
[1749170260267,3.2078,2420.2,2419.9,1.36010347]
[1749170260457,0.00620347,2420.3,2419.9,4.56790347]
[1749170260657,0.00620347,2420.3,2419.9,5.39397347]
[1749170260857,0.82602,2420.1,2419.9,4.56790347]
[1749170261067,0.82606,2420.0,2419.9,1.36010347]
[1749170261463,0.00620347,2420.3,2419.9,4.56790347]
[1749170261767,0.83218347,2420.3,2419.9,5.39398347]
[1749170261966,0.00620347,2420.3,2419.9,4.56790347]
[1749170262161,0.00620347,2420.3,2420.0,0.82606]
[1749170262369,0.00620347,2420.3,2420.1,1.3686]
[1749170262665,0.00620347,2420.3,2420.2,3.2078]
[1749170262859,0.83215347,2420.3,2420.2,3.2078]
[1749170263160,0.83215347,2420.3,2420.1,7.6386]
[1749170263161,0.00620347,2420.3,2420.1,7.6386]
[1749170263766,0.83217347,2420.3,2420.1,7.6386]
[1749170264067,0.00620347,2420.3,2420.1,7.6386]
[1749170264257,0.00620347,2420.3,2419.9,13.62300347]
[1749170264457,0.82602,2420.1,2419.9,14.99160347]
[1749170264658,0.00620347,2420.3,2419.9,14.99160347]
[1749170264862,0.82604,2420.1,2419.9,14.99160347]
[1749170265663,0.826,2420.2,2419.9,14.99160347]
[1749170265863,0.00620347,2420.3,2419.9,15.81767347]
[1749170266064,0.00620347,2420.3,2419.9,11.67867347]
[1749170266264,0.00620347,2420.3,2420.0,0.82605]
[1749170266265,0.83218347,2420.3,2420.0,0.82605]
[1749170266465,0.00620347,2420.3,2420.1,1.3869]
[1749170266767,0.83215347,2420.3,2420.1,1.3869]
[1749170267866,0.00620347,2420.3,2420.1,2.21291]
[1749170268069,0.82599,2420.2,2420.1,1.3869]
[1749170268268,0.00620347,2420.3,2420.1,1.3869]
[1749170268769,0.83215347,2420.3,2420.1,1.3869]
[1749170268971,0.00620347,2420.3,2420.1,2.21291]
[1749170269365,0.00620347,2420.3,2420.2,3.2078]
[1749170269569,0.83215347,2420.3,2420.2,1.4139]
[1749170270270,0.82599,2420.2,2420.1,1.3869]
[1749170270572,0.89732351,2420.2,2420.1,1.3869]
[1749170271867,0.07133351,2420.2,2420.1,1.3869]
[1749170272369,0.07133351,2420.2,2420.1,2.6797]
[1749170272566,0.07133351,2420.2,2420.1,3.50572]
[1749170273366,0.07133351,2420.2,2420.1,2.6797]
[1749170274171,0.07133351,2420.2,2420.1,3.50572]
[1749170274374,0.00620347,2420.3,2420.2,0.82599]
[1749170274672,0.00620347,2420.3,2420.2,3.2078]
[1749170274973,0.83215347,2420.3,2420.2,3.2078]
[1749170275169,0.83216347,2420.3,2420.1,8.9497]
[1749170275367,0.00620347,2420.3,2420.2,4.03379]
[1749170275667,0.00620347,2420.3,2420.2,3.2078]
[1749170275870,0.00620347,2420.3,2420.2,4.03379]
[1749170277770,3.2078,2421.0,2420.5,0.82585]
[1749170277970,0.82577,2420.9,2420.6,1.3307]
[1749170278176,4.03355,2421.0,2420.7,1.2837]
[1749170278476,1.3553,2421.1,2420.7,3.4201]
[1749170278973,0.82572,2421.0,2420.8,1.2837]
[1749170280571,1.36150347,2421.1,2420.8,2.10948]
[1749170280778,0.00620347,2421.1,2420.8,2.10948]
[1749170281074,0.00620347,2421.1,2420.9,0.82574]
[1749170281278,0.83188347,2421.1,2421.0,1.3857]
[1749170282074,0.83188347,2421.1,2420.8,3.2078]
[1749170282271,0.00620347,2421.1,2420.8,4.5935]
[1749170282478,0.00620347,2421.1,2421.0,0.82571]
[1749170282879,0.00620347,2421.1,2421.0,2.13801]
[1749170284479,0.00620347,2421.1,2421.0,1.3123]
[1749170284682,0.00620347,2421.1,2420.8,3.2078]
[1749170284979,0.82574,2421.0,2420.8,3.2078]
[1749170285174,0.82575,2421.0,2420.8,3.2078]
[1749170285478,0.07753698,2421.1,2421.0,0.82571]
[1749170285885,0.07753698,2421.1,2421.0,7.09471]
[1749170288380,0.07753698,2421.1,2421.0,0.82571]
[1749170288586,0.07753698,2421.1,2421.0,7.09371]
[1749170290379,3.2078,2422.9,2421.3,2.06403]
[1749170290683,3.2078,2423.0,2422.1,3.2078]
[1749170290882,0.82521,2422.5,2422.1,9.4378]
[1749170291185,0.8253,2422.2,2422.1,3.2078]
[1749170291393,1.3529,2422.4,2421.9,0.00620347]
[1749170291690,0.82533,2422.2,2421.9,0.00620347]
[1749170292086,2.15389,2422.3,2421.9,0.00620347]
[1749170292293,2.15389,2422.3,2421.9,3.21400347]
[1749170292592,0.82531,2422.2,2421.9,3.21400347]
[1749170292794,0.82531,2422.2,2421.9,4.49190347]
[1749170293290,1.3286,2422.3,2422.1,0.82532]
[1749170293993,1.3286,2422.3,2422.1,1.2779]
[1749170294181,1.3286,2422.3,2421.9,6.23520347]
[1749170294383,0.82537,2422.0,2421.9,0.00620347]
[1749170294892,5.82537,2422.0,2421.9,0.00620347]
[1749170296895,4.4996,2422.2,2421.9,0.00620347]
[1749170297598,5.32492,2422.2,2421.9,0.00620347]
[1749170297788,0.82534,2422.1,2421.9,0.00620347]
[1749170297984,5.32492,2422.2,2421.9,0.00620347]
[1749170298185,4.4996,2422.2,2421.9,0.00620347]
[1749170298593,1.2918,2422.2,2421.9,0.00620347]
[1749170298794,1.2918,2422.2,2421.9,1.34730347]
[1749170299289,0.82534,2422.1,2421.9,0.00620347]
[1749170299485,0.82537,2422.0,2421.9,0.00620347]
[1749170300197,0.82536,2422.1,2421.9,0.00620347]
[1749170301089,2.18845351,2422.2,2421.9,0.00620347]
[1749170301288,0.82535,2422.1,2421.9,0.00620347]
[1749170301786,0.82537,2422.0,2421.9,0.00620347]
[1749170302093,2.12917,2422.0,2421.9,0.00620347]
[1749170302293,7.12917,2422.0,2421.9,0.00620347]
[1749170302690,7.12917,2422.0,2421.9,3.47e-06]
[1749170302894,7.12917,2422.0,2420.9,8.17253]
[1749170302895,0.82568,2421.1,2420.9,9.4358]
[1749170303097,3.2078,2421.5,2420.9,10.26151]
[1749170303401,1.3038,2421.4,2420.9,10.26151]
[1749170303601,3.2078,2421.5,2420.9,9.4358]
[1749170303803,1.3697,2421.6,2421.5,0.82554]
[1749170304300,0.00620347,2421.8,2421.6,0.8255]
[1749170304498,0.00620347,2421.8,2421.7,0.82548]
[1749170305003,0.00620347,2421.8,2421.6,0.82549]
[1749170305204,0.00620347,2421.8,2421.7,0.82548]
[1749170307696,0.00620347,2421.8,2421.6,2.13339]
[1749170307897,0.00620347,2421.8,2421.7,0.82548]
[1749170308202,0.00620347,2421.8,2421.6,2.13339]
[1749170308398,0.00620347,2421.8,2421.5,3.2078]
[1749170308595,0.8255,2421.7,2421.5,3.2078]
[1749170308801,0.00620347,2421.8,2421.3,8.37659]
[1749170308802,0.82551,2421.6,2421.3,7.551]
[1749170309098,1.3483,2421.7,2421.3,6.228]
[1749170309305,0.82558,2421.4,2421.3,6.228]
[1749170309504,1.3483,2421.7,2421.3,6.228]
[1749170309799,0.83165347,2421.8,2421.3,6.228]
[1749170310107,0.83165347,2421.8,2421.4,4.97366]
[1749170310397,0.00620347,2421.8,2421.4,4.1481]
[1749170310791,0.00620347,2421.8,2421.4,4.97366]
[1749170310792,0.83166347,2421.8,2421.4,4.97366]
[1749170311306,0.00620347,2421.8,2421.5,0.82553]
[1749170311503,0.00620347,2421.8,2421.6,1.3703]
[1749170312509,0.83164347,2421.8,2421.6,1.3703]
[1749170313010,0.00620347,2421.8,2421.6,1.3703]
[1749170313303,0.00620347,2421.8,2421.6,2.1958]
[1749170313502,0.00620347,2421.8,2421.7,0.82548]
[1749170313908,0.00620347,2421.8,2421.7,7.05348]
[1749170314307,0.00620347,2421.8,2421.7,6.228]
[1749170314510,0.00620347,2421.8,2421.7,7.05348]
[1749170315207,0.07753698,2421.8,2421.7,7.05348]
[1749170317403,3.2078,2423.2,2422.1,2.06333]
[1749170317606,0.82515,2422.7,2422.3,0.82524]
[1749170317912,0.82517,2422.6,2422.4,1.4214]
[1749170318209,1.3168,2423.1,2422.4,1.4214]
[1749170318410,0.82518,2422.6,2422.3,0.00620347]
[1749170318608,0.82521,2422.5,2422.3,0.00620347]
[1749170318808,6.58735,2422.9,2422.3,0.00620347]
[1749170319005,1.16896996,2422.8,2422.3,0.00620347]
[1749170319305,3.35822996,2422.7,2422.3,0.83146347]
[1749170319498,1.3641,2422.7,2422.3,0.00620347]
[1749170319699,0.82524,2422.4,2422.3,0.00620347]
[1749170321604,9.03304,2422.4,2422.3,0.00620347]
[1749170321809,9.03304,2422.4,2421.6,28.1808]
[1749170321810,0.82547,2421.8,2421.6,3.2078]
[1749170322218,0.89680351,2421.8,2421.6,3.2078]
[1749170322506,0.89680351,2421.8,2421.4,6.188]
[1749170322507,0.07133351,2421.8,2421.4,6.188]
[1749170322706,0.82552,2421.6,2421.4,6.19420347]
[1749170323009,0.07133351,2421.8,2421.6,0.82549]
[1749170323407,0.07133351,2421.8,2421.7,1.3082]
[1749170323809,0.89677351,2421.8,2421.7,1.3082]
[1749170324009,0.89677351,2421.8,2421.5,2.16172]
[1749170324208,0.07133351,2421.8,2421.6,0.8255]
[1749170324414,0.07133351,2421.8,2421.6,2.1337]
[1749170324703,0.07133351,2421.8,2421.6,1.3082]
[1749170325107,0.07133351,2421.8,2421.7,4.03328]
[1749170325708,0.07133351,2421.8,2421.7,3.2078]
[1749170325908,0.89677351,2421.8,2421.7,3.2078]
[1749170326108,0.89677351,2421.8,2421.6,1.3082]
[1749170326109,0.82551,2421.6,2421.5,1.3362]
[1749170326302,0.82554,2421.5,2421.4,0.00620347]
[1749170326708,5.82554,2421.5,2421.4,0.00620347]
[1749170326915,0.82568,2421.1,2421.0,3.2078]
[1749170327115,0.82578,2420.8,2420.7,2.7426]
[1749170327614,3.2078,2421.0,2420.4,1.3163]
[1749170327810,0.82577,2420.9,2420.6,0.82582]
[1749170328014,0.82578,2420.8,2420.5,2.17886347]
[1749170328213,0.82576,2420.9,2420.6,0.82585]
[1749170328409,0.82576,2420.9,2420.7,1.3468]
[1749170328612,0.83193347,2421.0,2420.7,1.3468]
[1749170328910,0.82575,2420.9,2420.7,1.3468]
[1749170329415,0.00620347,2421.0,2420.7,0.82579]
[1749170329715,0.00620347,2421.0,2420.8,1.2953]
[1749170330511,0.07133351,2420.9,2420.8,1.2953]
[1749170331515,0.07133351,2420.9,2420.5,0.00620347]
[1749170331811,0.07133351,2420.9,2420.6,1.2971]
[1749170332006,0.8258,2420.8,2420.6,1.2971]
[1749170332408,0.07133351,2420.9,2420.5,0.00620347]
[1749170332708,0.07133351,2420.9,2420.7,3.2078]
[1749170332914,0.89708351,2420.9,2420.7,3.2078]
[1749170333215,0.07133351,2420.9,2420.7,0.82582]
[1749170333512,0.83192347,2421.0,2420.8,1.2971]
[1749170334007,0.82575,2420.9,2420.8,1.2971]
[1749170334213,0.00620347,2421.0,2420.8,1.2971]
[1749170334406,0.83193347,2421.0,2420.8,1.2971]
[1749170335011,0.00620347,2421.0,2420.8,1.2971]
[1749170335213,0.82575,2420.9,2420.8,1.2971]
[1749170335408,0.00620347,2421.0,2420.8,1.2971]
[1749170336317,0.00620347,2421.0,2420.7,1.4021]
[1749170336512,0.82582,2420.7,2420.6,0.07133351]
[1749170337618,5.82582,2420.7,2420.6,0.07133351]
[1749170339319,0.82582,2420.7,2420.6,0.07133351]
[1749170339619,4.5943,2420.9,2420.6,0.89716351]
[1749170339819,4.5943,2420.9,2420.6,0.07133351]
[1749170340010,4.5943,2420.9,2420.6,2.22707351]
[1749170340207,4.5943,2420.9,2420.6,1.40123351]
[1749170340413,1.3865,2420.9,2420.6,4.88826351]
[1749170340613,1.3865,2420.9,2420.6,2.73253351]
[1749170340815,0.82582,2420.7,2420.6,0.07133351]
[1749170342921,4.03362,2420.7,2420.6,0.07133351]
[1749170343220,0.82609,2419.9,2419.8,3.2078]
[1749170343723,0.82626,2419.4,2419.3,3.2078]
[1749170343919,3.2078,2419.9,2419.3,3.2078]
[1749170344222,0.82618,2419.7,2419.4,0.00620347]
[1749170344422,0.00620347,2419.8,2419.4,1.32910347]
[1749170344725,0.82618,2419.7,2419.4,1.32910347]
[1749170345014,0.00620347,2419.8,2419.4,1.32910347]
[1749170345219,0.00620347,2419.8,2419.5,2.6895]
[1749170345518,0.00620347,2419.8,2419.7,0.82616]
[1749170345723,0.00620347,2419.8,2419.6,2.14908]
[1749170346421,0.83234347,2419.8,2419.6,1.3229]
[1749170346618,0.00620347,2419.8,2419.6,2.14909]
[1749170346930,0.00620347,2419.8,2419.7,0.82616]
[1749170348020,3.2078,2420.6,2420.2,0.82598]
[1749170348220,3.2078,2420.6,2420.3,2.78]
[1749170348419,4.03367,2420.6,2420.3,2.78]
[1749170348729,0.82587,2420.6,2420.3,2.78]
[1749170349021,0.82587,2420.6,2420.3,5.9878]
[1749170349227,0.82587,2420.6,2420.3,2.78]
[1749170349921,0.00620347,2420.7,2420.3,2.78]
[1749170350117,0.82586,2420.6,2420.3,2.78]
[1749170350314,0.82586,2420.6,2420.3,3.60595]
[1749170350530,0.82586,2420.6,2420.3,2.78]
[1749170350826,0.82586,2420.6,2420.3,5.9878]
[1749170351028,0.00620347,2420.7,2420.3,6.81375]
[1749170351421,0.82586,2420.6,2420.3,5.9878]
[1749170352828,0.83203347,2420.7,2420.3,6.81375]
[1749170353026,0.00620347,2420.7,2420.3,5.9878]
[1749170353233,0.82592,2420.4,2420.3,5.9878]
[1749170353526,0.82587,2420.6,2420.3,5.9878]
[1749170355126,0.82592,2420.5,2420.3,5.9878]
[1749170355334,0.8259,2420.5,2420.3,5.9878]
[1749170355626,0.8259,2420.5,2420.3,4.6066]
[1749170355834,0.00620347,2420.7,2420.3,4.6066]
[1749170356032,0.00620347,2420.7,2420.5,0.82587]
[1749170356225,0.8257,2421.1,2420.8,0.82578]
[1749170356426,0.82567,2421.2,2420.6,4.5936]
[1749170356632,0.82567,2421.2,2420.9,0.82575]
[1749170357028,2.7072,2421.3,2421.1,0.82565]
[1749170357240,2.24651,2421.3,2421.0,0.83190347]
[1749170357536,1.4209,2421.3,2421.1,0.82568]
[1749170357825,1.4209,2421.3,2421.0,0.83189347]
[1749170358029,0.00620347,2421.4,2421.2,0.82562]
[1749170358338,0.00620347,2421.4,2421.3,2.21141]
[1749170359031,0.00620347,2421.4,2421.3,2.6981]
[1749170359337,0.82566,2421.2,2421.0,0.00620347]
[1749170359824,0.82563,2421.3,2421.0,1.35970347]
[1749170360019,0.00620347,2421.4,2421.1,3.2078]
[1749170360234,0.00620347,2421.4,2421.2,1.3535]
[1749170360427,0.00620347,2421.4,2421.2,2.17913]
[1749170360628,0.00620347,2421.4,2421.3,1.3535]
[1749170360827,0.00620347,2421.4,2421.3,1.42483351]
[1749170362531,0.83178347,2421.4,2421.3,1.42483351]
[1749170362933,0.00620347,2421.4,2421.3,1.42483351]
[1749170363833,7.4363,2421.9,2421.3,1.42483351]
[1749170363834,3.2078,2422.1,2421.3,7.57483351]
[1749170364033,4.03317,2422.1,2421.7,0.82546]
[1749170364234,4.03316,2422.1,2421.8,3.51864]
[1749170364437,4.03316,2422.1,2421.8,2.6932]
[1749170364636,2.6689,2422.3,2421.8,2.6932]
[1749170364832,3.49419,2422.3,2421.9,0.82541]
[1749170365138,4.03291,2422.8,2422.1,3.2078]
[1749170365335,3.2078,2422.8,2422.5,0.82517]